[Event "*** Titled Tuesday Blitz"]
[Site "Chess.com"]
[Date "2020.04.21"]
[Round "6"]
[White "Firegrizzly"]
[Black "arctic_t00"]
[Result "1-0"]
[WhiteElo "2670"]
[BlackElo "2465"]
[TimeControl "180+1"]
[EndTime "11:08:39 PDT"]
[Termination "Firegrizzly won by resignation"]

1. e4 {[%clk 0:03:00.9]} 1... e6 {[%clk 0:03:00.3]} 2. d3 {[%clk 0:02:59.4]}
2... c5 {[%clk 0:03:00]} 3. g3 {[%clk 0:02:58.5]} 3... Nc6 {[%clk 0:03:00.4]} 4.
Bg2 {[%clk 0:02:57.4]} 4... d6 {[%clk 0:02:57.7]} 5. c3 {[%clk 0:02:56.6]} 5...
Nf6 {[%clk 0:02:53.7]} 6. Nf3 {[%clk 0:02:57.1]} 6... Be7 {[%clk 0:02:51.9]} 7.
O-O {[%clk 0:02:57.5]} 7... O-O {[%clk 0:02:52.5]} 8. Re1 {[%clk 0:02:56.2]}
8... Bd7 {[%clk 0:02:51.2]} 9. a3 {[%clk 0:02:55.7]} 9... Rc8 {[%clk 0:02:48.3]}
10. Nbd2 {[%clk 0:02:50.9]} 10... e5 {[%clk 0:02:45.5]} 11. b4 {[%clk
0:02:49.6]} 11... b5 {[%clk 0:02:40.3]} 12. Bb2 {[%clk 0:02:46.6]} 12... Qb6
{[%clk 0:02:32.7]} 13. Nh4 {[%clk 0:02:39.1]} 13... Rfe8 {[%clk 0:02:28.9]} 14.
Nf5 {[%clk 0:02:37.4]} 14... Bf8 {[%clk 0:02:29.1]} 15. Ne3 {[%clk 0:02:36.6]}
15... Ne7 {[%clk 0:02:12.7]} 16. Rb1 {[%clk 0:02:32.8]} 16... g6 {[%clk
0:02:05.4]} 17. bxc5 {[%clk 0:02:27.9]} 17... dxc5 {[%clk 0:02:04.7]} 18. c4
{[%clk 0:02:27.3]} 18... Nc6 {[%clk 0:01:51.3]} 19. cxb5 {[%clk 0:02:26.2]}
19... Nd4 {[%clk 0:01:41.2]} 20. Ndc4 {[%clk 0:02:25.8]} 20... Qc7 {[%clk
0:01:32.5]} 21. a4 {[%clk 0:02:25]} 21... Bh6 {[%clk 0:01:24.9]} 22. Bxd4 {[%clk
0:02:16.5]} 22... exd4 {[%clk 0:01:13.8]} 23. Nd5 {[%clk 0:02:14.4]} 23... Nxd5
{[%clk 0:01:13.6]} 24. exd5 {[%clk 0:02:15.3]} 24... Bf5 {[%clk 0:01:04]} 25.
Rxe8+ {[%clk 0:02:11.4]} 25... Rxe8 {[%clk 0:01:03.6]} 26. a5 {[%clk 0:02:10.1]}
26... Qd7 {[%clk 0:00:42.2]} 27. b6 {[%clk 0:02:07.8]} 27... axb6 {[%clk
0:00:42]} 28. axb6 {[%clk 0:02:07.3]} 28... Bg4 {[%clk 0:00:38.5]} 29. Bf3
{[%clk 0:02:04.7]} 29... Bh3 {[%clk 0:00:35.2]} 30. b7 {[%clk 0:02:03]} 30...
Rb8 {[%clk 0:00:34.3]} 31. d6 {[%clk 0:02:02.2]} 31... Bf8 {[%clk 0:00:30.6]}
32. Ra1 {[%clk 0:01:56.2]} 32... Bxd6 {[%clk 0:00:24.6]} 33. Nxd6 {[%clk
0:01:56.1]} 33... Qxd6 {[%clk 0:00:25.3]} 34. Ra8 {[%clk 0:01:56]} 34... Kg7
{[%clk 0:00:23.3]} 35. Qc1 {[%clk 0:01:53.2]} 35... Qe5 {[%clk 0:00:20.7]} 36.
Ra5 {[%clk 0:01:48]} 36... Re8 {[%clk 0:00:18.4]} 37. Ra1 {[%clk 0:01:46.4]}
37... Qf5 {[%clk 0:00:15.9]} 38. Bh1 {[%clk 0:01:35.9]} 38... Re2 {[%clk
0:00:14.1]} 39. Qf4 {[%clk 0:01:34.9]} 39... Qe6 {[%clk 0:00:11.4]} 40. Be4
{[%clk 0:01:24.4]} 40... Qa2 {[%clk 0:00:06.7]} 41. Rc1 {[%clk 0:01:12.9]} 41...
Qc2 {[%clk 0:00:06.7]} 42. b8=Q {[%clk 0:01:06.4]} 42... Rxf2 {[%clk 0:00:07]}
43. Qbe5+ {[%clk 0:01:03.6]} 43... Kg8 {[%clk 0:00:07.3]} 44. Qe8+ {[%clk
0:00:54.6]} 44... Kg7 {[%clk 0:00:06.3]} 45. Qexf7+ {[%clk 0:00:53.4]} 1-0

[Event "*** Titled Tuesday Blitz"]
[Site "Chess.com"]
[Date "2020.04.21"]
[Round "6"]
[White "VerdeNotte"]
[Black "GMBenjaminBok"]
[Result "1-0"]
[WhiteElo "2753"]
[BlackElo "2877"]
[TimeControl "180+1"]
[EndTime "11:08:40 PDT"]
[Termination "VerdeNotte won by resignation"]

1. e4 {[%clk 0:03:00.9]} 1... c5 {[%clk 0:02:59.8]} 2. Nc3 {[%clk 0:03:00.3]}
2... d6 {[%clk 0:03:00]} 3. d4 {[%clk 0:03:00.1]} 3... cxd4 {[%clk 0:03:00.9]}
4. Qxd4 {[%clk 0:03:00.5]} 4... Nc6 {[%clk 0:03:01.5]} 5. Qd2 {[%clk 0:03:00.8]}
5... g6 {[%clk 0:03:02.1]} 6. b3 {[%clk 0:03:00.6]} 6... Bh6 {[%clk 0:03:02.4]}
7. f4 {[%clk 0:03:00.9]} 7... Nf6 {[%clk 0:03:00.1]} 8. Bb2 {[%clk 0:03:00.8]}
8... O-O {[%clk 0:02:59.4]} 9. O-O-O {[%clk 0:03:00.6]} 9... a5 {[%clk
0:02:59.6]} 10. a4 {[%clk 0:03:00.3]} 10... Nb4 {[%clk 0:02:59.8]} 11. Kb1
{[%clk 0:02:59]} 11... Qb6 {[%clk 0:02:59.9]} 12. Bc4 {[%clk 0:02:54.5]} 12...
Bg4 {[%clk 0:02:54.5]} 13. Nge2 {[%clk 0:02:50.1]} 13... Rac8 {[%clk 0:02:54.4]}
14. h3 {[%clk 0:02:47.3]} 14... Bd7 {[%clk 0:01:56.9]} 15. g4 {[%clk 0:02:42.9]}
15... Rxc4 {[%clk 0:01:50.6]} 16. bxc4 {[%clk 0:02:43.8]} 16... Bg7 {[%clk
0:01:49.7]} 17. e5 {[%clk 0:02:37.5]} 17... Ne8 {[%clk 0:01:47.9]} 18. Qd4
{[%clk 0:02:25.8]} 18... Qa6 {[%clk 0:01:40.8]} 19. c5 {[%clk 0:02:10.9]} 19...
Bc6 {[%clk 0:01:26.9]} 20. Rhe1 {[%clk 0:02:00.1]} 20... dxe5 {[%clk 0:01:20.8]}
21. fxe5 {[%clk 0:01:59.8]} 21... Nc7 {[%clk 0:01:19.8]} 22. Nf4 {[%clk
0:01:58.2]} 22... Rc8 {[%clk 0:00:40.9]} 23. Nd3 {[%clk 0:01:52.7]} 23... Nbd5
{[%clk 0:00:22.4]} 24. Nxd5 {[%clk 0:01:47.7]} 24... Nxd5 {[%clk 0:00:22.5]} 25.
Rf1 {[%clk 0:01:42.2]} 25... e6 {[%clk 0:00:21.4]} 26. Rf2 {[%clk 0:01:32.5]}
26... b6 {[%clk 0:00:11.1]} 27. cxb6 {[%clk 0:01:27.9]} 27... Nxb6 {[%clk
0:00:10.8]} 28. Nc5 {[%clk 0:01:26.6]} 28... Qa8 {[%clk 0:00:09.5]} 29. Rdf1
{[%clk 0:01:10.4]} 29... Bg2 {[%clk 0:00:09.2]} 30. Rxf7 {[%clk 0:00:56.5]}
30... Bxf1 {[%clk 0:00:09.4]} 31. Rxf1 {[%clk 0:00:56]} 31... Qc6 {[%clk
0:00:09.8]} 32. Ba3 {[%clk 0:00:28.4]} 32... Rb8 {[%clk 0:00:07.8]} 33. Nb3
{[%clk 0:00:15.8]} 33... Nxa4 {[%clk 0:00:06.4]} 34. Qd6 {[%clk 0:00:14.5]}
34... Qc4 {[%clk 0:00:05.5]} 35. Qxb8+ {[%clk 0:00:13.9]} 1-0

[Event "*** Titled Tuesday Blitz"]
[Site "Chess.com"]
[Date "2020.04.21"]
[Round "6"]
[White "Morshynska"]
[Black "floplover"]
[Result "0-1"]
[WhiteElo "2101"]
[BlackElo "2239"]
[TimeControl "180+1"]
[EndTime "11:08:40 PDT"]
[Termination "floplover won on time"]

1. e4 {[%clk 0:03:00.9]} 1... c6 {[%clk 0:02:59.5]} 2. d4 {[%clk 0:03:00.4]}
2... d5 {[%clk 0:03:00.4]} 3. Nd2 {[%clk 0:03:00.3]} 3... dxe4 {[%clk
0:02:59.9]} 4. Nxe4 {[%clk 0:03:01.2]} 4... Nd7 {[%clk 0:03:00.6]} 5. Ng5 {[%clk
0:02:59.3]} 5... Ngf6 {[%clk 0:03:00.1]} 6. Bd3 {[%clk 0:02:55.8]} 6... e6
{[%clk 0:02:58.9]} 7. N1f3 {[%clk 0:02:54.6]} 7... Bd6 {[%clk 0:02:57.9]} 8. Qe2
{[%clk 0:02:54.1]} 8... h6 {[%clk 0:02:58]} 9. Ne4 {[%clk 0:02:54.1]} 9... Nxe4
{[%clk 0:02:58.5]} 10. Qxe4 {[%clk 0:02:54.8]} 10... Qc7 {[%clk 0:02:58.8]} 11.
Qg4 {[%clk 0:02:46.6]} 11... Kf8 {[%clk 0:02:58.5]} 12. O-O {[%clk 0:02:32]}
12... b6 {[%clk 0:02:54.2]} 13. b3 {[%clk 0:02:26.4]} 13... Bb7 {[%clk
0:02:50.2]} 14. Bb2 {[%clk 0:02:25.7]} 14... Nf6 {[%clk 0:02:39.4]} 15. Qh4
{[%clk 0:02:12.2]} 15... Ke7 {[%clk 0:02:26.5]} 16. Rfe1 {[%clk 0:02:08.1]}
16... g5 {[%clk 0:02:23.8]} 17. Qh3 {[%clk 0:01:58]} 17... Nd5 {[%clk 0:02:11]}
18. g3 {[%clk 0:01:47.5]} 18... Rag8 {[%clk 0:01:56.3]} 19. Ne5 {[%clk
0:01:36.8]} 19... c5 {[%clk 0:01:36.3]} 20. dxc5 {[%clk 0:01:27.1]} 20... Bxc5
{[%clk 0:01:30.5]} 21. Ng6+ {[%clk 0:00:46.2]} 21... fxg6 {[%clk 0:01:26.6]} 22.
Qxe6+ {[%clk 0:00:40.5]} 22... Kd8 {[%clk 0:01:24.5]} 23. Bxh8 {[%clk
0:00:37.2]} 23... Rxh8 {[%clk 0:01:23.5]} 24. Bxg6 {[%clk 0:00:34.2]} 24... Qc6
{[%clk 0:01:11.3]} 25. Qxc6 {[%clk 0:00:25]} 25... Bxc6 {[%clk 0:01:12.2]} 26.
Rad1 {[%clk 0:00:23.5]} 26... Kc7 {[%clk 0:01:11.5]} 27. Be4 {[%clk 0:00:21.5]}
27... Re8 {[%clk 0:01:02.6]} 28. c4 {[%clk 0:00:14.2]} 28... Rxe4 {[%clk
0:00:56.1]} 29. Rxe4 {[%clk 0:00:11.3]} 29... Nc3 {[%clk 0:00:56.1]} 30. Ree1
{[%clk 0:00:10.4]} 30... Nxd1 {[%clk 0:00:53.4]} 31. Rxd1 {[%clk 0:00:11.3]}
31... g4 {[%clk 0:00:45.7]} 32. Re1 {[%clk 0:00:11.3]} 32... Kd6 {[%clk
0:00:37.7]} 33. h3 {[%clk 0:00:10.3]} 33... h5 {[%clk 0:00:36.8]} 34. hxg4
{[%clk 0:00:10.4]} 34... hxg4 {[%clk 0:00:37.4]} 35. Rd1+ {[%clk 0:00:10.6]}
35... Ke5 {[%clk 0:00:36.1]} 36. Rd8 {[%clk 0:00:09.7]} 36... Bf3 {[%clk
0:00:32.8]} 37. Rb8 {[%clk 0:00:05.3]} 37... Kd4 {[%clk 0:00:31.2]} 38. Re8
{[%clk 0:00:04.3]} 38... Kc3 {[%clk 0:00:30.5]} 0-1

[Event "*** Titled Tuesday Blitz"]
[Site "Chess.com"]
[Date "2020.04.21"]
[Round "6"]
[White "ferch1ni"]
[Black "jonaszmb"]
[Result "0-1"]
[WhiteElo "2312"]
[BlackElo "2465"]
[TimeControl "180+1"]
[EndTime "11:08:41 PDT"]
[Termination "jonaszmb won on time"]

1. e4 {[%clk 0:01:28.5]} 1... c5 {[%clk 0:02:58.8]} 2. Nf3 {[%clk 0:01:24.4]}
2... Nc6 {[%clk 0:02:58.4]} 3. d4 {[%clk 0:01:24.1]} 3... cxd4 {[%clk
0:02:59.3]} 4. Nxd4 {[%clk 0:01:24.7]} 4... e5 {[%clk 0:02:59]} 5. Nb3 {[%clk
0:01:24]} 5... Nf6 {[%clk 0:02:58.3]} 6. Nc3 {[%clk 0:01:23.3]} 6... Bb4 {[%clk
0:02:58]} 7. Bd3 {[%clk 0:01:22.6]} 7... d5 {[%clk 0:02:57.6]} 8. exd5 {[%clk
0:01:21.8]} 8... Nxd5 {[%clk 0:02:57.4]} 9. Bd2 {[%clk 0:01:21.9]} 9... Nxc3
{[%clk 0:02:56.9]} 10. bxc3 {[%clk 0:01:21.7]} 10... Be7 {[%clk 0:02:56.8]} 11.
O-O {[%clk 0:01:21.6]} 11... O-O {[%clk 0:02:57]} 12. f4 {[%clk 0:01:19.1]}
12... exf4 {[%clk 0:02:54.1]} 13. Bxf4 {[%clk 0:01:19]} 13... Be6 {[%clk
0:02:49.4]} 14. Kh1 {[%clk 0:01:18.8]} 14... Bf6 {[%clk 0:02:48]} 15. Qd2 {[%clk
0:01:15.2]} 15... Rc8 {[%clk 0:02:32.6]} 16. Nc5 {[%clk 0:01:10.9]} 16... Qe7
{[%clk 0:02:13.9]} 17. Nxe6 {[%clk 0:01:05.8]} 17... fxe6 {[%clk 0:02:07.4]} 18.
Rae1 {[%clk 0:01:02.5]} 18... Kh8 {[%clk 0:02:00.8]} 19. Qe2 {[%clk 0:00:37.6]}
19... e5 {[%clk 0:01:55.2]} 20. Qh5 {[%clk 0:00:27.7]} 20... g6 {[%clk
0:01:36.5]} 21. Qh3 {[%clk 0:00:27.7]} 21... Bg7 {[%clk 0:01:09.1]} 22. Bh6
{[%clk 0:00:25.1]} 22... Bxh6 {[%clk 0:01:06.6]} 23. Qxh6 {[%clk 0:00:23.1]}
23... Qg7 {[%clk 0:01:06.2]} 24. Qg5 {[%clk 0:00:17.2]} 24... Rxf1+ {[%clk
0:01:04.3]} 25. Rxf1 {[%clk 0:00:17]} 25... Rf8 {[%clk 0:01:04.9]} 26. Rxf8+
{[%clk 0:00:16.2]} 26... Qxf8 {[%clk 0:01:05.8]} 27. h4 {[%clk 0:00:15.8]} 27...
Qe7 {[%clk 0:01:00]} 28. Qh6 {[%clk 0:00:15.3]} 28... Qg7 {[%clk 0:00:47.9]} 29.
Qg5 {[%clk 0:00:13.4]} 29... e4 {[%clk 0:00:33.3]} 30. Bxe4 {[%clk 0:00:10.8]}
30... Qxc3 {[%clk 0:00:33.9]} 31. h5 {[%clk 0:00:08.5]} 31... Qe1+ {[%clk
0:00:30.3]} 32. Kh2 {[%clk 0:00:08.4]} 32... Qxe4 {[%clk 0:00:28.1]} 33. g3
{[%clk 0:00:06.3]} 33... Qe2+ {[%clk 0:00:25.4]} 34. Kg1 {[%clk 0:00:05.8]}
34... Qd1+ {[%clk 0:00:23.4]} 35. Kg2 {[%clk 0:00:04.8]} 35... Qxc2+ {[%clk
0:00:23]} 36. Kg1 {[%clk 0:00:04.5]} 36... Qb1+ {[%clk 0:00:22.8]} 37. Kg2
{[%clk 0:00:03.8]} 37... Qa1 {[%clk 0:00:22.8]} 0-1

[Event "*** Titled Tuesday Blitz"]
[Site "Chess.com"]
[Date "2020.04.21"]
[Round "6"]
[White "Batica1984"]
[Black "lupta_robin"]
[Result "1-0"]
[WhiteElo "2766"]
[BlackElo "2529"]
[TimeControl "180+1"]
[EndTime "11:08:42 PDT"]
[Termination "Batica1984 won by resignation"]

1. e4 {[%clk 0:03:00.9]} 1... g6 {[%clk 0:03:00]} 2. d4 {[%clk 0:02:57.9]} 2...
Nf6 {[%clk 0:03:00.5]} 3. Nc3 {[%clk 0:02:57.8]} 3... d5 {[%clk 0:02:59.9]} 4.
e5 {[%clk 0:02:52.3]} 4... Ne4 {[%clk 0:03:00.1]} 5. Nce2 {[%clk 0:02:47.3]}
5... f6 {[%clk 0:03:00.3]} 6. f3 {[%clk 0:02:32.5]} 6... Ng5 {[%clk 0:03:00.1]}
7. h4 {[%clk 0:02:32.6]} 7... Nf7 {[%clk 0:02:59.8]} 8. f4 {[%clk 0:02:31.5]}
8... Bg4 {[%clk 0:02:53.7]} 9. Be3 {[%clk 0:02:21]} 9... c5 {[%clk 0:02:40.9]}
10. c3 {[%clk 0:02:11.9]} 10... Nc6 {[%clk 0:02:39.8]} 11. Qd2 {[%clk 0:02:08]}
11... c4 {[%clk 0:02:34.6]} 12. Nh3 {[%clk 0:02:03.7]} 12... Bh6 {[%clk
0:02:17.6]} 13. Nf2 {[%clk 0:02:01.1]} 13... Qd7 {[%clk 0:02:14.8]} 14. Nxg4
{[%clk 0:01:51.7]} 14... Qxg4 {[%clk 0:02:14.3]} 15. g3 {[%clk 0:01:51.4]} 15...
Qf3 {[%clk 0:01:24.6]} 16. Rh2 {[%clk 0:01:33.9]} 16... fxe5 {[%clk 0:01:12]}
17. Bg2 {[%clk 0:01:33.2]} 17... Qh5 {[%clk 0:01:09.6]} 18. Bxd5 {[%clk
0:01:28.5]} 18... exd4 {[%clk 0:01:05.4]} 19. Bxc6+ {[%clk 0:01:22.3]} 19...
bxc6 {[%clk 0:01:04.5]} 20. Nxd4 {[%clk 0:01:18.8]} 20... O-O {[%clk 0:01:01.3]}
21. Qe2 {[%clk 0:01:18]} 21... Qd5 {[%clk 0:00:57.7]} 22. O-O-O {[%clk
0:01:15.8]} 22... Nd6 {[%clk 0:00:56.6]} 23. h5 {[%clk 0:01:14.2]} 23... Bg7
{[%clk 0:00:50.1]} 24. hxg6 {[%clk 0:01:12.7]} 24... hxg6 {[%clk 0:00:50.1]} 25.
Qg4 {[%clk 0:01:05.7]} 25... Qe4 {[%clk 0:00:44.4]} 26. Qe6+ {[%clk 0:01:05.5]}
26... Rf7 {[%clk 0:00:44.6]} 27. Re1 {[%clk 0:00:55.7]} 27... Qxe6 {[%clk
0:00:30]} 28. Nxe6 {[%clk 0:00:55.2]} 28... Nf5 {[%clk 0:00:29.9]} 29. Bf2
{[%clk 0:00:50.5]} 29... Bf6 {[%clk 0:00:29.2]} 30. g4 {[%clk 0:00:48.6]} 30...
Ng7 {[%clk 0:00:29.6]} 31. g5 {[%clk 0:00:39.2]} 31... Nxe6 {[%clk 0:00:29.5]}
32. Rxe6 {[%clk 0:00:39.4]} 32... Bg7 {[%clk 0:00:29.8]} 33. Be3 {[%clk
0:00:39.3]} 33... Rf5 {[%clk 0:00:24.3]} 34. Rxg6 {[%clk 0:00:37.9]} 34... Rd8
{[%clk 0:00:16.4]} 35. Bd4 {[%clk 0:00:32.3]} 35... Rf7 {[%clk 0:00:15]} 36. Re2
{[%clk 0:00:29.2]} 36... Rd7 {[%clk 0:00:12.3]} 37. Re4 {[%clk 0:00:28.3]} 37...
Kf8 {[%clk 0:00:11.1]} 38. Bxg7+ {[%clk 0:00:27.7]} 38... Rxg7 {[%clk 0:00:12]}
39. Rxg7 {[%clk 0:00:28]} 39... Kxg7 {[%clk 0:00:11.9]} 40. Rxc4 {[%clk
0:00:28.6]} 40... Kg6 {[%clk 0:00:12.3]} 41. Rxc6+ {[%clk 0:00:28.5]} 41... Kf5
{[%clk 0:00:12.9]} 42. Rc4 {[%clk 0:00:28.7]} 42... Kg4 {[%clk 0:00:12.6]} 43.
Kc2 {[%clk 0:00:28.9]} 1-0

[Event "*** Titled Tuesday Blitz"]
[Site "Chess.com"]
[Date "2020.04.21"]
[Round "6"]
[White "RoelandPruijssers"]
[Black "Fh2411"]
[Result "1-0"]
[WhiteElo "2611"]
[BlackElo "2463"]
[TimeControl "180+1"]
[EndTime "11:08:43 PDT"]
[Termination "RoelandPruijssers won by resignation"]

1. e4 {[%clk 0:03:00.9]} 1... c5 {[%clk 0:02:56.5]} 2. Nf3 {[%clk 0:03:00.9]}
2... e6 {[%clk 0:02:56.5]} 3. d4 {[%clk 0:03:00.6]} 3... cxd4 {[%clk 0:02:57.4]}
4. Nxd4 {[%clk 0:03:01.1]} 4... a6 {[%clk 0:02:57.5]} 5. Bd3 {[%clk 0:03:00.2]}
5... Bc5 {[%clk 0:02:56]} 6. Nb3 {[%clk 0:03:00.1]} 6... Be7 {[%clk 0:02:56.5]}
7. O-O {[%clk 0:03:00.7]} 7... d6 {[%clk 0:02:55.7]} 8. Qg4 {[%clk 0:03:00.6]}
8... g6 {[%clk 0:02:55.5]} 9. Qe2 {[%clk 0:03:00]} 9... Nc6 {[%clk 0:02:56]} 10.
a4 {[%clk 0:02:53.7]} 10... Nf6 {[%clk 0:02:55.6]} 11. Bh6 {[%clk 0:02:52]}
11... Nh5 {[%clk 0:02:55.4]} 12. f4 {[%clk 0:02:20]} 12... Bf6 {[%clk
0:02:49.2]} 13. Nc3 {[%clk 0:02:03.9]} 13... Ng7 {[%clk 0:02:30.6]} 14. e5
{[%clk 0:01:47.5]} 14... dxe5 {[%clk 0:02:25.9]} 15. Ne4 {[%clk 0:01:47.2]}
15... Nf5 {[%clk 0:01:39.5]} 16. Nxf6+ {[%clk 0:01:43.8]} 16... Qxf6 {[%clk
0:01:40.4]} 17. Bg5 {[%clk 0:01:44.5]} 17... Qg7 {[%clk 0:01:39.3]} 18. fxe5
{[%clk 0:01:28.2]} 18... Nxe5 {[%clk 0:01:32.6]} 19. g4 {[%clk 0:01:15.3]} 19...
Nxg4 {[%clk 0:00:46.7]} 20. Qxg4 {[%clk 0:01:13.7]} 20... O-O {[%clk 0:00:46.5]}
21. Bxf5 {[%clk 0:00:47.3]} 21... exf5 {[%clk 0:00:45.4]} 22. Qh4 {[%clk
0:00:43.1]} 22... Re8 {[%clk 0:00:25]} 23. c3 {[%clk 0:00:42.4]} 23... Be6
{[%clk 0:00:21.7]} 24. Nd4 {[%clk 0:00:41.8]} 24... Qf8 {[%clk 0:00:20.6]} 25.
Rae1 {[%clk 0:00:39.5]} 25... Bc4 {[%clk 0:00:17.8]} 26. Rxe8 {[%clk 0:00:23.7]}
26... Rxe8 {[%clk 0:00:18.7]} 27. Re1 {[%clk 0:00:22.9]} 27... Rxe1+ {[%clk
0:00:16.5]} 28. Qxe1 {[%clk 0:00:23.8]} 28... f6 {[%clk 0:00:17.2]} 29. Bd2
{[%clk 0:00:20.9]} 29... Qd6 {[%clk 0:00:17]} 30. Qg3 {[%clk 0:00:20.6]} 30...
Qe5 {[%clk 0:00:15.8]} 31. b3 {[%clk 0:00:13.7]} 31... Bd5 {[%clk 0:00:14.7]}
32. Qe3 {[%clk 0:00:09.6]} 32... Qe4 {[%clk 0:00:14.1]} 33. Qxe4 {[%clk
0:00:09.2]} 33... fxe4 {[%clk 0:00:15]} 34. c4 {[%clk 0:00:09.8]} 34... Bf7
{[%clk 0:00:14.5]} 35. Kf2 {[%clk 0:00:08.8]} 35... Kg7 {[%clk 0:00:13]} 36. Bc3
{[%clk 0:00:09]} 36... f5 {[%clk 0:00:13.9]} 37. Nxf5+ {[%clk 0:00:08.8]} 37...
Kf8 {[%clk 0:00:14.6]} 38. Nd6 {[%clk 0:00:08.4]} 1-0

[Event "*** Titled Tuesday Blitz"]
[Site "Chess.com"]
[Date "2020.04.21"]
[Round "6"]
[White "Chess_Boxer123"]
[Black "Irishchessman16"]
[Result "0-1"]
[WhiteElo "2532"]
[BlackElo "2404"]
[TimeControl "180+1"]
[EndTime "11:08:43 PDT"]
[Termination "Irishchessman16 won by resignation"]

1. e4 {[%clk 0:03:00.9]} 1... c5 {[%clk 0:03:00.1]} 2. Nf3 {[%clk 0:03:00.6]}
2... Nc6 {[%clk 0:03:00.1]} 3. Bb5 {[%clk 0:02:58.9]} 3... e6 {[%clk 0:03:00.2]}
4. O-O {[%clk 0:02:58.5]} 4... Nge7 {[%clk 0:02:57.4]} 5. Re1 {[%clk 0:02:58.6]}
5... g6 {[%clk 0:02:43.7]} 6. d4 {[%clk 0:02:47.6]} 6... cxd4 {[%clk 0:02:42.3]}
7. Nxd4 {[%clk 0:02:48.2]} 7... Bg7 {[%clk 0:02:41.7]} 8. Be3 {[%clk 0:02:48.2]}
8... O-O {[%clk 0:02:39.4]} 9. Nc3 {[%clk 0:02:48.6]} 9... f5 {[%clk 0:02:32.2]}
10. exf5 {[%clk 0:02:35.4]} 10... gxf5 {[%clk 0:02:30.8]} 11. Nf3 {[%clk
0:02:06.8]} 11... d5 {[%clk 0:02:09.8]} 12. Bc5 {[%clk 0:01:53.1]} 12... Rf6
{[%clk 0:02:05.8]} 13. Ne2 {[%clk 0:01:43.3]} 13... e5 {[%clk 0:02:00.4]} 14.
Bxe7 {[%clk 0:01:34]} 14... Qxe7 {[%clk 0:01:56.2]} 15. Nf4 {[%clk 0:01:33.9]}
15... Rd6 {[%clk 0:01:39]} 16. c4 {[%clk 0:01:10.7]} 16... dxc4 {[%clk
0:01:32.5]} 17. Bxc4+ {[%clk 0:01:07.9]} 17... Kh8 {[%clk 0:01:32.8]} 18. Nd5
{[%clk 0:00:53.4]} 18... Qd8 {[%clk 0:01:29.6]} 19. Qc2 {[%clk 0:00:29.6]} 19...
e4 {[%clk 0:01:04.6]} 20. Nd2 {[%clk 0:00:27]} 20... Rxd5 {[%clk 0:01:04]} 21.
Bxd5 {[%clk 0:00:27.1]} 21... Qxd5 {[%clk 0:01:04.1]} 22. Rad1 {[%clk
0:00:27.7]} 22... Qf7 {[%clk 0:00:59.4]} 23. Nc4 {[%clk 0:00:24.9]} 23... Be6
{[%clk 0:00:58.4]} 24. Nd6 {[%clk 0:00:25.2]} 24... Qc7 {[%clk 0:00:50.2]} 25.
Qc5 {[%clk 0:00:21.5]} 25... Be5 {[%clk 0:00:46.7]} 26. Nc4 {[%clk 0:00:19.1]}
26... Bxh2+ {[%clk 0:00:44]} 27. Kh1 {[%clk 0:00:19.6]} 27... Bf4 {[%clk
0:00:33.2]} 28. Nd6 {[%clk 0:00:19.2]} 28... Qe7 {[%clk 0:00:22.2]} 29. Qa3
{[%clk 0:00:13.8]} 29... Qh4+ {[%clk 0:00:20.8]} 30. Kg1 {[%clk 0:00:13.3]}
30... Qh2+ {[%clk 0:00:20.6]} 31. Kf1 {[%clk 0:00:13.8]} 31... Qh1+ {[%clk
0:00:20.7]} 32. Ke2 {[%clk 0:00:14.3]} 32... Qxg2 {[%clk 0:00:20.9]} 33. Rg1
{[%clk 0:00:12.8]} 33... Qf3+ {[%clk 0:00:20.6]} 34. Qxf3 {[%clk 0:00:12.8]}
34... exf3+ {[%clk 0:00:20.9]} 35. Kxf3 {[%clk 0:00:13.7]} 35... Be5 {[%clk
0:00:18.8]} 36. Rde1 {[%clk 0:00:13.4]} 36... Bxd6 {[%clk 0:00:17.4]} 37. Rxe6
{[%clk 0:00:13.2]} 37... Nd4+ {[%clk 0:00:17.5]} 0-1

[Event "*** Titled Tuesday Blitz"]
[Site "Chess.com"]
[Date "2020.04.21"]
[Round "6"]
[White "stasiek18"]
[Black "ItsCheckM8Mate"]
[Result "1-0"]
[WhiteElo "2417"]
[BlackElo "2236"]
[TimeControl "180+1"]
[EndTime "11:08:43 PDT"]
[Termination "stasiek18 won on time"]

1. e4 {[%clk 0:03:00.9]} 1... e5 {[%clk 0:02:56.9]} 2. Nf3 {[%clk 0:03:00.9]}
2... Nc6 {[%clk 0:02:56.7]} 3. Bc4 {[%clk 0:03:01]} 3... Nf6 {[%clk 0:02:56.7]}
4. d3 {[%clk 0:02:58.8]} 4... h6 {[%clk 0:02:56.2]} 5. O-O {[%clk 0:02:54.4]}
5... d6 {[%clk 0:02:55.6]} 6. a4 {[%clk 0:02:48]} 6... g5 {[%clk 0:02:55]} 7. c3
{[%clk 0:02:30.3]} 7... Bg7 {[%clk 0:02:53.2]} 8. Nbd2 {[%clk 0:02:16.1]} 8...
O-O {[%clk 0:02:51.9]} 9. b4 {[%clk 0:02:07.5]} 9... a5 {[%clk 0:02:44.5]} 10.
b5 {[%clk 0:02:07.6]} 10... Ne7 {[%clk 0:02:44.3]} 11. Bb3 {[%clk 0:01:58.8]}
11... Ng6 {[%clk 0:02:41.8]} 12. Nc4 {[%clk 0:01:57]} 12... g4 {[%clk
0:02:14.5]} 13. Ne1 {[%clk 0:01:54.8]} 13... d5 {[%clk 0:02:09.2]} 14. exd5
{[%clk 0:01:45.9]} 14... Nxd5 {[%clk 0:02:08.7]} 15. Ne3 {[%clk 0:01:12]} 15...
Nxc3 {[%clk 0:01:44.8]} 16. Qc2 {[%clk 0:01:11.6]} 16... e4 {[%clk 0:01:44.6]}
17. Bb2 {[%clk 0:01:03.2]} 17... Nf4 {[%clk 0:00:56.9]} 18. dxe4 {[%clk
0:00:41]} 18... Qh4 {[%clk 0:00:34.5]} 19. Bxc3 {[%clk 0:00:20.1]} 19... Bxc3
{[%clk 0:00:32.2]} 20. Ra2 {[%clk 0:00:20.4]} 20... Be5 {[%clk 0:00:25.9]} 21.
g3 {[%clk 0:00:16.9]} 21... Nh3+ {[%clk 0:00:23]} 22. Kg2 {[%clk 0:00:15.5]}
22... Qh5 {[%clk 0:00:18.6]} 23. f4 {[%clk 0:00:12.7]} 23... gxf3+ {[%clk
0:00:13.6]} 24. Nxf3 {[%clk 0:00:12.8]} 24... Ng5 {[%clk 0:00:10.7]} 25. Nxe5
{[%clk 0:00:10.7]} 25... Bh3+ {[%clk 0:00:08.2]} 26. Kg1 {[%clk 0:00:07.9]}
26... Bxf1 {[%clk 0:00:06.4]} 27. Nxf1 {[%clk 0:00:07.5]} 27... Nh3+ {[%clk
0:00:06]} 28. Kg2 {[%clk 0:00:07.6]} 28... Qxe5 {[%clk 0:00:04.1]} 29. Kxh3
{[%clk 0:00:07.7]} 29... Rad8 {[%clk 0:00:03.5]} 30. Qf2 {[%clk 0:00:05.5]} 1-0